[Event "Slovakian-ch Youth 2022"]
[Site "Lubovna"]
[Date "2022.05.22"]
[Round "1.32"]
[White "Ziman, Damian"]
[Black "Diachenko Mykhailo"]
[Result "1-0"]
[ECO "C54"]
[WhiteElo "1293"]
[BlackElo "1000"]
[Annotator "NA COMBH"]
[PlyCount "55"]
[EventDate "2022.05.22"]
[EventCountry "SVK"]
[SourceTitle "playchess.com"]
[Source "ChessBase"]
[SourceQuality "1"]
[TimeControl "40/5400+30:1800+30"]

1. e4 {[%emt 0:00:13]} e5 {[%emt 0:00:10]} 2. Nf3 {[%emt 0:00:21]} Nc6 {[%emt 0:00:19]} 3. Bc4 {[%emt 0:00:25]} Nf6 {[%emt 0:00:54]} 4. d3 {[%emt 0:00:32]} h6 {[%emt 0:02:15]} 5. c3 {[%emt 0:00:39]} Bc5 {[%emt 0:01:19]} 6. O-O {[%emt 0:00:54]} d6 {[%emt 0:00:18]} 7. Nbd2 {[%emt 0:00:44]} Bg4 {[%emt 0:00:29]} 8. Re1 {[%emt 0:00:51]} O-O {[%emt 0:00:53]} 9. Nf1 {[%emt 0:00:43]} Bh5 {[%emt 0:00:57]} 10. Be3 {[%emt 0:01:23]} Bxe3 {[%emt 0:01:12]} 11. Nxe3 {[%emt 0:00:17]} Ng4 {[%emt 0:01:29]} 12. Nd5 {[%emt 0:01:58]} Nf6 {[%emt 0:00:49]} 13. Qe2 {[%emt 0:08:42]} Rb8 {[%emt 0:01:00]} 14. Qe3 {[%emt 0:04:40]} b5 {[%emt 0:01:05]} 15. Bb3 {[%emt 0:01:26]} a5 {[%emt 0:00:40]} 16. a3 {[%emt 0:01:45]} a4 {[%emt 0:00:27]} 17. Ba2 {[%emt 0:00:40]} Ng4 {[%emt 0:04:44]} 18. Qe2 {[%emt 0:02:07]} Re8 {[%emt 0:01:38]} 19. Rab1 {[%emt 0:01:55]} Ne7 {[%emt 0:01:09]} 20. h3 {[%emt 0:04:03]} Nf6 {[%emt 0:01:06]} 21. Nxf6+ {[%emt 0:00:48]} gxf6 {[%emt 0:00:18]} 22. Qe3 {[%emt 0:01:08]} f5 {[%emt 0:01:07]} 23. Qxh6 {[%emt 0:02:11]} Bg6 {[%emt 0:00:40]} 24. exf5 {[%emt 0:01:31]} Nxf5 {[%emt 0:00:38]} 25. Qxg6+ {[%emt 0:00:36]} Ng7 {[%emt 0:01:02]} 26. Ng5 {[%emt 0:01:49]} Re7 {[%emt 0:01:46]} 27. Qh7+ {[%emt 0:00:33]} Kf8 {[%emt 0:00:57]} 28. Qh8# {[%emt 0:00:11]} 1-0

[Event "Slovakian-ch Youth 2022"]
[Site "Lubovna"]
[Date "2022.05.22"]
[Round "1.33"]
[White "Drabek Matej"]
[Black "Shykhnenko, Hryhorii"]
[Result "0-1"]
[ECO "C42"]
[WhiteElo "1000"]
[BlackElo "1284"]
[Annotator "NA COMBH"]
[PlyCount "53"]
[EventDate "2022.05.22"]
[EventCountry "SVK"]
[SourceTitle "playchess.com"]
[Source "ChessBase"]
[SourceQuality "1"]
[TimeControl "40/5400+30:1800+30"]

1. e4 {[%emt 0:00:05]} e5 {[%emt 0:00:09]} 2. Nf3 {[%emt 0:00:09]} Nf6 {[%emt 0:00:10]} 3. Nc3 {[%emt 0:00:15]} Bc5 {[%emt 0:00:06]} 4. Nxe5 {[%emt 0:00:31]} Nc6 {[%emt 0:00:06]} 5. Nf3 {[%emt 0:00:49]} Qe7 {[%emt 0:01:05]} 6. Bd3 {[%emt 0:00:56]} d5 {[%emt 0:00:33]} 7. Qe2 {[%emt 0:00:44]} dxe4 {[%emt 0:08:00]} 8. Nxe4 {[%emt 0:00:50]} Nxe4 {[%emt 0:01:31]} 9. Bxe4 {[%emt 0:00:37]} Bd7 {[%emt 0:03:49]} 10. d3 {[%emt 0:01:17]} f5 {[%emt 0:03:35]} 11. Bg5 {[%emt 0:02:30]} Qe6 {[%emt 0:00:56]} 12. d4 {[%emt 0:04:08]} fxe4 {[%emt 0:09:34]} 13. Nd2 {[%emt 0:04:05]} Bxd4 {[%emt 0:03:18]} 14. Nxe4 {[%emt 0:00:52]} O-O {[%emt 0:01:25]} 15. O-O {[%emt 0:01:57]} Qg6 {[%emt 0:01:16]} 16. Nf6+ {[%emt 0:02:47]} Bxf6 {[%emt 0:00:57]} 17. Qc4+ {[%emt 0:00:54]} Kh8 {[%emt 0:00:55]} 18. Bxf6 {[%emt 0:00:41]} Rxf6 {[%emt 0:00:18]} 19. Rad1 {[%emt 0:00:56]} Bh3 {[%emt 0:01:06]} 20. Qd5 {[%emt 0:00:40]} Rd6 {[%emt 0:02:50]} 21. Qf3 {[%emt 0:00:47]} Bg4 {[%emt 0:00:27]} 22. Rxd6 {[%emt 0:02:39]} cxd6 {[%emt 0:00:08]} 23. Qf4 {[%emt 0:01:10]} Ne5 {[%emt 0:02:42]} 24. Rd1 {[%emt 0:00:57]} Bxd1 {[%emt 0:00:44]} 25. c4 {[%emt 0:00:36]} Nf3+ {[%emt 0:02:08]} 26. Kh1 {[%emt 0:00:39]} Qd3 {[%emt 0:00:21]} 27. b4 {[%emt 0:01:31]} 0-1

[Event "Slovakian-ch Youth 2022"]
[Site "Lubovna"]
[Date "2022.05.22"]
[Round "1.34"]
[White "Dvorak, Alfred"]
[Black "Papay Aurel"]
[Result "0-1"]
[ECO "D02"]
[WhiteElo "1239"]
[BlackElo "1000"]
[Annotator "NA COMBH"]
[PlyCount "46"]
[EventDate "2022.05.22"]
[EventCountry "SVK"]
[SourceTitle "playchess.com"]
[Source "ChessBase"]
[SourceQuality "1"]
[TimeControl "40/5400+30:1800+30"]

1. d4 {[%emt 0:00:04]} d5 {[%emt 0:00:14]} 2. Nf3 {[%emt 0:00:21]} Nc6 {[%emt 0:00:49]} 3. Bf4 {[%emt 0:00:45]} Nf6 {[%emt 0:01:19]} 4. e3 {[%emt 0:00:58]} a6 {[%emt 0:01:54]} 5. a3 {[%emt 0:02:50]} Bf5 {[%emt 0:00:33]} 6. Bd3 {[%emt 0:00:29]} Bg6 {[%emt 0:01:13]} 7. Bxg6 {[%emt 0:00:46]} hxg6 {[%emt 0:00:45]} 8. Nbd2 {[%emt 0:01:03]} e6 {[%emt 0:00:55]} 9. c3 {[%emt 0:03:02]} Bd6 {[%emt 0:01:01]} 10. Bxd6 {[%emt 0:01:47]} Qxd6 {[%emt 0:00:16]} 11. Qc2 {[%emt 0:00:39]} O-O-O {[%emt 0:01:33]} 12. h3 {[%emt 0:01:41]} e5 {[%emt 0:03:52]} 13. dxe5 {[%emt 0:02:41]} Nxe5 {[%emt 0:00:21]} 14. O-O {[%emt 0:00:49]} Rde8 {[%emt 0:02:14]} 15. b4 {[%emt 0:02:10]} Nxf3+ {[%emt 0:03:57]} 16. Nxf3 {[%emt 0:00:10]} Ne4 {[%emt 0:00:09]} 17. Rfd1 {[%emt 0:02:05]} Rh5 {[%emt 0:06:51]} 18. c4 {[%emt 0:01:25]} Qd7 {[%emt 0:03:26]} 19. g4 {[%emt 0:02:30]} Rxh3 {[%emt 0:03:34]} 20. Nh2 {[%emt 0:08:04]} Rxh2 {[%emt 0:03:56]} 21. Kf1 {[%emt 0:05:47]} Qxg4 {[%emt 0:00:45]} 22. f3 {[%emt 0:04:02]} Qxf3+ {[%emt 0:00:30]} 23. Ke1 {[%emt 0:00:45]} Rh1# {[%emt 0:00:30]} 0-1

[Event "Slovakian-ch Youth 2022"]
[Site "Lubovna"]
[Date "2022.05.22"]
[Round "1.35"]
[White "Slivka Martin"]
[Black "Boros, David"]
[Result "0-1"]
[ECO "B12"]
[WhiteElo "1000"]
[BlackElo "1173"]
[Annotator "NA COMBH"]
[PlyCount "112"]
[EventDate "2022.05.22"]
[EventCountry "SVK"]
[SourceTitle "playchess.com"]
[Source "ChessBase"]
[SourceQuality "1"]
[TimeControl "40/5400+30:1800+30"]

1. e4 {[%emt 0:00:17]} c6 {[%emt 0:02:16]} 2. d4 {[%emt 0:00:31]} d5 {[%emt 0:00:10]} 3. e5 {[%emt 0:00:48]} Bf5 {[%emt 0:01:54]} 4. Bf4 {[%emt 0:02:19]} e6 {[%emt 0:02:50]} 5. Nf3 {[%emt 0:02:18]} Nd7 {[%emt 0:02:54]} 6. Nbd2 {[%emt 0:02:54]} Nb6 {[%emt 0:04:20]} 7. g3 {[%emt 0:01:18]} Qd7 {[%emt 0:04:21]} 8. Bg2 {[%emt 0:01:35]} Rc8 {[%emt 0:03:00]} 9. c3 {[%emt 0:02:23]} c5 {[%emt 0:01:41]} 10. O-O {[%emt 0:01:27]} Ne7 {[%emt 0:02:31]} 11. Rc1 {[%emt 0:06:27]} Ng6 {[%emt 0:04:18]} 12. Be3 {[%emt 0:01:41]} c4 {[%emt 0:03:18]} 13. b3 {[%emt 0:03:49]} Ba3 {[%emt 0:02:04]} 14. Ra1 {[%emt 0:01:47]} Bb2 {[%emt 0:00:22]} 15. g4 {[%emt 0:00:43]} Bd3 {[%emt 0:01:22]} 16. Re1 {[%emt 0:02:13]} Bxa1 {[%emt 0:01:12]} 17. Qxa1 {[%emt 0:00:26]} O-O {[%emt 0:05:13]} 18. Bg5 {[%emt 0:01:46]} h6 {[%emt 0:03:53]} 19. Be3 {[%emt 0:01:34]} Rc7 {[%emt 0:01:55]} 20. g5 {[%emt 0:02:02]} h5 {[%emt 0:01:39]} 21. Nf1 {[%emt 0:02:19]} h4 {[%emt 0:01:54]} 22. Rd1 {[%emt 0:02:35]} h3 {[%emt 0:02:55]} 23. Bxh3 {[%emt 0:01:53]} Be2 {[%emt 0:00:56]} 24. Re1 {[%emt 0:01:48]} Bxf3 {[%emt 0:00:42]} 25. Ng3 {[%emt 0:00:42]} Rfc8 {[%emt 0:03:28]} 26. Bd2 {[%emt 0:01:12]} Qb5 {[%emt 0:03:56]} 27. Re3 {[%emt 0:01:15]} Nh4 {[%emt 0:01:04]} 28. b4 {[%emt 0:01:20]} a5 {[%emt 0:01:49]} 29. a4 {[%emt 0:01:09]} Qxa4 {[%emt 0:01:21]} 30. Qxa4 {[%emt 0:00:16]} Nxa4 {[%emt 0:00:11]} 31. bxa5 {[%emt 0:00:23]} Ra8 {[%emt 0:01:40]} 32. g6 {[%emt 0:00:52]} Rxa5 {[%emt 0:02:55]} 33. Ne2 {[%emt 0:01:09]} Bxe2 {[%emt 0:02:48]} 34. gxf7+ {[%emt 0:00:43]} Kxf7 {[%emt 0:01:16]} 35. Rxe2 {[%emt 0:00:27]} Nb2 {[%emt 0:00:52]} 36. Bg5 {[%emt 0:00:58]} Ra1+ {[%emt 0:01:01]} 37. Bf1 {[%emt 0:00:29]} Nf3+ {[%emt 0:00:47]} 38. Kg2 {[%emt 0:00:39]} Nxg5 {[%emt 0:00:25]} 39. Rxb2 {[%emt 0:00:44]} Ne4 {[%emt 0:00:27]} 40. f3 {[%emt 0:01:02]} Nxc3 {[%emt 0:00:32]} 41. Rc2 {[%emt 0:31:49]} Ra2 {[%emt 0:30:19]} 42. Rxa2 {[%emt 0:00:47]} Nxa2 {[%emt 0:00:15]} 43. Kg3 {[%emt 0:00:17]} c3 {[%emt 0:00:32]} 44. Bd3 {[%emt 0:00:14]} c2 {[%emt 0:00:08]} 45. Bxc2 {[%emt 0:00:17]} Rxc2 {[%emt 0:00:01]} 46. h4 {[%emt 0:00:18]} b5 {[%emt 0:00:18]} 47. Kg4 {[%emt 0:00:29]} b4 {[%emt 0:00:14]} 48. Kg5 {[%emt 0:00:18]} b3 {[%emt 0:00:12]} 49. f4 {[%emt 0:00:17]} Rg2+ {[%emt 0:00:25]} 50. Kh5 {[%emt 0:00:15]} g6+ {[%emt 0:00:07]} 51. Kh6 {[%emt 0:00:15]} Rh2 {[%emt 0:01:42]} 52. f5 {[%emt 0:00:28]} b2 {[%emt 0:00:26]} 53. fxg6+ {[%emt 0:00:18]} Kg8 {[%emt 0:01:39]} 54. g7 {[%emt 0:00:24]} b1=Q {[%emt 0:01:48]} 55. h5 {[%emt 0:00:30]} Qf1 {[%emt 0:00:30]} 56. Kg5 {[%emt 0:00:24]} Qf5+ {[%emt 0:00:13]} 0-1

[Event "Slovakian-ch Youth 2022"]
[Site "Lubovna"]
[Date "2022.05.22"]
[Round "1.36"]
[White "Hudak, Michal"]
[Black "Stavac Teodor"]
[Result "1-0"]
[ECO "C54"]
[WhiteElo "1169"]
[BlackElo "1000"]
[Annotator "NA COMBH"]
[PlyCount "63"]
[EventDate "2022.05.22"]
[EventCountry "SVK"]
[SourceTitle "playchess.com"]
[Source "ChessBase"]
[SourceQuality "1"]
[TimeControl "40/5400+30:1800+30"]

1. e4 {[%emt 0:00:12]} e5 {[%emt 0:00:08]} 2. Nf3 {[%emt 0:00:16]} Nc6 {[%emt 0:00:11]} 3. Bc4 {[%emt 0:00:22]} Bc5 {[%emt 0:00:49]} 4. c3 {[%emt 0:00:30]} Nf6 {[%emt 0:00:24]} 5. d3 {[%emt 0:00:18]} d6 {[%emt 0:00:39]} 6. Nbd2 {[%emt 0:00:55]} O-O {[%emt 0:01:09]} 7. h3 {[%emt 0:00:17]} Bd7 {[%emt 0:02:49]} 8. Nf1 {[%emt 0:02:31]} Re8 {[%emt 0:04:37]} 9. Ng3 {[%emt 0:01:56]} a6 {[%emt 0:02:47]} 10. O-O {[%emt 0:00:58]} Be6 {[%emt 0:02:14]} 11. Bb3 {[%emt 0:01:07]} d5 {[%emt 0:00:47]} 12. Nxe5 {[%emt 0:06:48]} Nxe5 {[%emt 0:00:39]} 13. d4 {[%emt 0:00:11]} Bd6 {[%emt 0:02:05]} 14. dxe5 {[%emt 0:02:40]} Bxe5 {[%emt 0:01:30]} 15. exd5 {[%emt 0:00:30]} Bxd5 {[%emt 0:00:30]} 16. Bxd5 {[%emt 0:00:33]} Nxd5 {[%emt 0:00:12]} 17. Qf3 {[%emt 0:02:05]} c6 {[%emt 0:01:16]} 18. Re1 {[%emt 0:01:22]} Bd6 {[%emt 0:00:28]} 19. Bd2 {[%emt 0:01:02]} Qb6 {[%emt 0:02:56]} 20. b3 {[%emt 0:02:16]} Rad8 {[%emt 0:00:39]} 21. Nf5 {[%emt 0:01:29]} Qc5 {[%emt 0:02:04]} 22. b4 {[%emt 0:00:56]} Qc4 {[%emt 0:00:50]} 23. Nxd6 {[%emt 0:00:48]} Rf8 {[%emt 0:05:30]} 24. Nxc4 {[%emt 0:00:09]} b5 {[%emt 0:00:53]} 25. Ne5 {[%emt 0:00:19]} Rde8 {[%emt 0:02:29]} 26. Qg3 {[%emt 0:00:45]} f6 {[%emt 0:00:23]} 27. Bh6 {[%emt 0:00:49]} Re7 {[%emt 0:00:15]} 28. Nxc6 {[%emt 0:01:39]} Rd7 {[%emt 0:00:23]} 29. Ne7+ {[%emt 0:00:57]} Rxe7 {[%emt 0:00:22]} 30. Rxe7 {[%emt 0:00:05]} Rf7 {[%emt 0:00:18]} 31. Re8+ {[%emt 0:00:20]} Rf8 {[%emt 0:00:14]} 32. Qxg7# {[%emt 0:00:11]} 1-0

[Event "Slovakian-ch Youth 2022"]
[Site "Lubovna"]
[Date "2022.05.22"]
[Round "2.1"]
[White "Zetocha, Adrian"]
[Black "Nadzamova, Viktoria"]
[Result "1-0"]
[ECO "C02"]
[WhiteElo "2331"]
[BlackElo "2135"]
[Annotator "TA"]
[PlyCount "73"]
[EventDate "2022.05.22"]
[EventCountry "SVK"]
[SourceTitle "playchess.com"]
[Source "ChessBase"]
[SourceQuality "1"]
[TimeControl "40/5400+30:1800+30"]

{[%evp 9,73,0,71,75,42,61,115,112,185,195,184,188,206,198,208,216,198,206,211,166,250,231,256,239,284,269,293,266,323,308,376,358,412,410,407,401,391,274,264,253,340,337,480,421,425,371,444,427,471,461,641,635,1274,1248,1521,1481,1400,1311,1559,1518,2540,2306,29990,29991,29992,29993]} 1. e4 {[%emt 0:00:51]} c5 {[%emt 0:00:36]} 2. Nf3 {[%emt 0:00:48]} e6 {[%emt 0:00:35]} 3. c3 {[%emt 0:00:19]} d5 {[%emt 0:04:34]} 4. e5 {[%emt 0:06:41]} Nc6 {[%emt 0:00:48]} 5. d4 {[%emt 0:00:43]} c4 {[%emt 0:01:11]} (5... Qb6 $11) 6. b3 $16 {[%emt 0:03:40] C02: French: Advance Variation.} b5 {[%emt 0:09:43]} 7. a4 {[%emt 0:04:27]} Na5 {[%emt 0:00:16] [#]} (7... Qa5 $14) 8. Nfd2 $1 {[%emt 0:05:30] White is better.} ({Reject} 8. axb5 Nxb3 9. Ra2 Bd7 $15) 8... Bd7 {[%emt 0:19:02]} (8... b4 $16 {might work better.}) 9. axb5 $18 {[%emt 0:06:40][%cal Rb3c4] [#]} cxb3 $146 {[%emt 0:06:15]} ({Predecessor:} 9... Bxb5 10. Na3 Bxa3 11. Bxa3 Qd7 12. bxc4 Nxc4 13. Bxc4 Bxc4 14. Nxc4 dxc4 15. Qg4 f5 {1-0 (27) Privara,I (2217)-Socha,J (1946) Tatranske Zruby 2018}) 10. Nxb3 {[%emt 0:00:44]} Nc4 {[%emt 0:01:20]} 11. N3d2 {[%emt 0:01:31]} Nb6 {[%emt 0:01:38]} 12. Bd3 {[%emt 0:08:41]} Ne7 {[%emt 0:05:19]} 13. Ba3 {[%emt 0:05:13]} Ng6 {[%emt 0:01:34]} 14. g3 {[%emt 0:02:24]} Qc7 {[%emt 0:12:28]} (14... Bxa3 $142 15. Nxa3 (15. Rxa3 O-O $16) 15... O-O) 15. Bxf8 {[%emt 0:08:07]} Kxf8 {[%emt 0:04:08]} 16. O-O {[%emt 0:01:27]} Ne7 {[%emt 0:02:29]} 17. Qb3 {[%emt 0:04:00]} h5 {[%emt 0:02:29]} 18. h4 {[%emt 0:09:56][%cal Bh2h4,Bh4g5][%mdl 32]} g5 {[%emt 0:07:46]} 19. hxg5 {[%emt 0:04:57]} h4 {[%emt 0:00:09]} 20. Qb4 {[%emt 0:04:00]} Qd8 {[%emt 0:01:45]} 21. g4 {[%emt 0:00:45]} Kg7 {[%emt 0:01:06]} 22. f4 {[%emt 0:00:37]} Ng6 {[%emt 0:01:09]} 23. Bxg6 {[%emt 0:02:04]} fxg6 {[%emt 0:00:13]} 24. Na3 {[%emt 0:00:54]} h3 {[%emt 0:03:47]} 25. Kh2 {[%emt 0:01:46]} Qe8 {[%emt 0:02:02]} (25... a5 {keeps fighting.} 26. bxa6 Rxa6) 26. Nb3 {[%emt 0:01:54]} Qf7 {[%emt 0:01:11]} 27. Rf3 {[%emt 0:01:01]} Rh4 {[%emt 0:01:12]} 28. Rg1 {[%emt 0:00:30]} Rb8 {[%emt 0:02:46]} 29. Qd6 {[%emt 0:01:20]} Rb7 {[%emt 0:02:36]} 30. f5 {[%emt 0:01:23]} gxf5 {[%emt 0:01:37]} 31. gxf5 {[%emt 0:00:16][%cal Bg4f5,Bf5f6][%mdl 32]} Nc8 {[%emt 0:00:32]} 32. f6+ {[%emt 0:00:56]} Kg6 {[%emt 0:00:29]} 33. Qa6 {[%emt 0:00:54]} Rb6 {[%emt 0:00:46]} 34. Qa4 {[%emt 0:00:06]} a6 {[%emt 0:00:42]} 35. Nc5 {[%emt 0:00:07] [#] Qc2+ would kill now.} Bxb5 {[%emt 0:01:18]} 36. Qc2+ {[%emt 0:00:12]} Kh5 {[%emt 0:01:59]} 37. g6 {[%emt 0:00:12] Black did not feel at home in the position after the opening.  Weighted Error Value: White=0.11 (very precise) /Black=0.70} 1-0

[Event "Slovakian-ch Youth 2022"]
[Site "Lubovna"]
[Date "2022.05.22"]
[Round "2.1"]
[White "Gollner, Martin"]
[Black "Elias, David"]
[Result "1/2-1/2"]
[ECO "B36"]
[WhiteElo "1585"]
[BlackElo "1901"]
[Annotator "TA"]
[PlyCount "158"]
[EventDate "2022.05.22"]
[EventCountry "SVK"]
[SourceTitle "playchess.com"]
[Source "ChessBase"]
[SourceQuality "1"]
[TimeControl "40/5400+30:1800+30"]

{[%evp 24,158,17,11,38,26,35,39,76,13,13,16,23,25,18,24,16,0,17,0,0,-8,-4,-61,-30,-50,-6,-50,0,-12,-14,-19,0,-50,-50,-120,-148,-226,-231,-216,-180,-177,-182,-352,-347,-352,-353,-363,-365,-337,-351,-317,-119,-568,-550,-579,-376,-353,-116,-211,-211,-205,8,8,8,8,8,8,8,0,74,85,870,575,518,0,0,0,0,0,8,8,8,8,180,180,180,163,6070,5079,5057,5057,1513,167,180,180,180,180,180,0,180,180,180,180,180,180,180,180,180,180,180,180,180,180,180,180,180,172,172,167,172,172,182,168,189,0,0,0,120,0,0,0,0,0,0,0,0]} 1. e4 {[%emt 0:10:04]} c5 {[%emt 0:00:08]} 2. Nf3 {[%emt 0:00:05]} Nc6 {[%emt 0:00:06]} 3. d4 {[%emt 0:00:05]} cxd4 {[%emt 0:00:03]} 4. Nxd4 {[%emt 0:00:02]} g6 {[%emt 0:00:18]} 5. c4 {[%emt 0:01:27]} Nf6 {[%emt 0:00:12]} 6. Nc3 {[%emt 0:00:05]} d6 {[%emt 0:00:06]} 7. f3 {[%emt 0:00:21]} Nxd4 {[%emt 0:01:01]} 8. Qxd4 {[%emt 0:00:05]} Bg7 {[%emt 0:00:02]} 9. Be3 {[%emt 0:00:57]} O-O {[%emt 0:00:06]} 10. Qd2 {[%emt 0:00:12]} Be6 {[%emt 0:01:03]} 11. Be2 {[%emt 0:00:22]} Qa5 {[%emt 0:01:39]} 12. O-O {[%emt 0:00:54]} Rfc8 {[%emt 0:00:22]} 13. b3 {[%emt 0:01:21] 13.Rfc1 is not played anymore.} Ng4 {[%emt 0:19:17] B36: Sicilian: Maroczy Bind: Gurgenidze System.} 14. Bd4 {[%emt 0:05:36]} Bxd4+ {[%emt 0:04:34]} 15. Qxd4 {[%emt 0:00:03]} Ne5 {[%emt 0:02:57] White is slightly better.} 16. Nd5 {[%emt 0:04:35] [#]} (16. f4 $16) 16... Bxd5 $146 {[%emt 0:05:11]} ({Predecessor:} 16... Nc6 17. Qf2 Bxd5 18. exd5 Ne5 19. Rfe1 Qc5 20. f4 Nd7 21. Bg4 f5 22. Rxe7 Qxf2+ 23. Kxf2 {½-½ (49) Bajo Gutierrez,I (2230)-Villafane Roca,H (2219) Santa Olaya 1999}) 17. exd5 {[%emt 0:01:09]} Qc5 {[%emt 0:01:26]} 18. Qxc5 {[%emt 0:00:35]} Rxc5 {[%emt 0:00:39]} 19. f4 {[%emt 0:02:35]} Nd7 {[%emt 0:01:48]} 20. Bd3 {[%emt 0:12:18]} Rc7 {[%emt 0:03:55]} 21. f5 {[%emt 0:03:27]} Ne5 {[%emt 0:01:02]} 22. Be4 {[%emt 0:00:36]} Kg7 {[%emt 0:00:50]} 23. Rf2 {[%emt 0:04:55]} (23. h4 $11) 23... a6 {[%emt 0:01:24]} 24. a4 {[%emt 0:01:53]} Rb8 {[%emt 0:07:09]} 25. a5 {[%emt 0:02:58]} Rc5 {[%emt 0:00:07]} (25... g5 $15) 26. Rfa2 {[%emt 0:04:12]} g5 {[%emt 0:03:02]} 27. Kf2 {[%emt 0:03:41]} Kf6 {[%emt 0:02:18]} 28. Kg3 {[%emt 0:13:16]} (28. h3 $11) 28... h5 {[%emt 0:01:41]} 29. h4 {[%emt 0:02:38]} (29. Kf2 $15) 29... gxh4+ $17 {[%emt 0:06:47]} 30. Kf2 {[%emt 0:03:17]} (30. Kxh4 $17 {keeps fighting.} Rg8 31. Re1) 30... Rg8 $19 {[%emt 0:02:44]} 31. Rh1 {[%emt 0:01:00]} Rg3 {[%emt 0:06:18]} 32. Bf3 {[%emt 0:06:02]} Kg5 {[%emt 0:03:36]} (32... Kxf5 33. Rxh4 Rg5 34. Bxh5 $11) 33. f6 $2 {[%emt 0:07:02]} (33. Raa1 {might work better.}) 33... exf6 {[%emt 0:00:38]} (33... Kxf6 34. Rxh4 Rg5 35. Bxh5 $15) 34. Rh3 {[%emt 0:00:11]} Nxf3 {[%emt 0:04:31]} 35. Rxg3+ {[%emt 0:00:45]} hxg3+ {[%emt 0:00:06]} 36. Kxf3 {[%emt 0:00:07][%mdl 4096] Endgame KR-KR} h4 {[%emt 0:00:43]} 37. Ra1 {[%emt 0:04:47]} Kf5 $2 {[%emt 0:00:29]} (37... f5 $19 {is more deadly. ...Rc7 is the strong threat.} 38. Ra2 f4) 38. Ke3 $2 {[%emt 0:01:37][%mdl 8192]} (38. Rh1 $17) 38... Kg4 {[%emt 0:01:10]} 39. Rf1 {[%emt 0:03:35]} Rxa5 {[%emt 0:03:45]} 40. Rxf6 {[%emt 0:00:03]} Ra2 $2 {[%emt 0:04:03]} (40... Ra3 $19 {and Black stays clearly on top.} 41. Rxf7 Rxb3+ 42. Ke4 Rb2 43. Rg7+ Kh5) 41. Rf4+ {[%emt 0:13:32]} (41. c5 $17 h3 42. gxh3+ Kg5 43. Rf3 (43. Rxf7 g2 $17) 43... dxc5 44. Rxg3+ Kf6 45. Kd3) 41... Kg5 {[%emt 0:06:43]} 42. c5 {[%emt 0:00:13][%cal Bc4c5,Bc5d6,Bd6d7][%mdl 32]} Rc2 $2 {[%emt 0:11:09]} (42... Rxg2 43. cxd6 Rd2 44. d7 Rxd5 45. Rd4 Rxd7 46. Rxd7 $16) (42... dxc5 43. d6 Ra1 44. Kd2 Kxf4 45. d7 $11) ({Black should try} 42... h3 $19 43. gxh3 dxc5 44. h4+ Kg6 45. Rg4+ Kf6 46. Rxg3 Rh2 47. Rf3+ Ke7 48. d6+ Kxd6 49. Rxf7 Rh3+ 50. Rf3 Rxf3+ 51. Kxf3 a5) 43. cxd6 $11 {[%emt 0:04:00]} Rc8 $1 {[%emt 0:02:07]} (43... Rxg2 $2 44. d7 Re2+ 45. Kxe2 $18) 44. d7 {[%emt 0:04:29]} Rd8 {[%emt 0:00:11] Strongly threatening ...f5.} 45. Rxf7 {[%emt 0:00:09]} a5 {[%emt 0:03:28]} 46. Kd4 {[%emt 0:02:26] Threatens to win with Ke5.} Kg6 {[%emt 0:04:35]} (46... Kh6 $1 $11) 47. Re7 $16 {[%emt 0:00:02]} b6 {[%emt 0:06:41][%mdl 8192]} (47... h3 $16 48. gxh3 (48. Re6+ Kf5 $11) 48... g2) 48. d6 {[%emt 0:06:13]} h3 {[%emt 0:08:05][%cal Od8d7]} 49. gxh3 $2 {[%emt 0:00:45]} (49. Re3 $1 $18 {[%cal Re3g3]}) 49... Rxd7 $11 {[%emt 0:00:15]} 50. Re6+ {[%emt 0:02:32]} (50. Rxd7 $2 {is the wrong capture.} g2 51. Kd5 (51. Rg7+ $2 Kxg7 52. Kc4 g1=Q $19) 51... g1=Q $19) 50... Kf5 {[%emt 0:01:08]} 51. Kd5 {[%emt 0:00:06]} g2 {[%emt 0:00:31]} 52. Re1 {[%emt 0:00:11] Black must now prevent Kc6.} Rg7 {[%emt 0:01:04]} 53. Rg1 {[%emt 0:00:09] Hoping for h4.} Kf4 $2 {[%emt 0:01:36]} (53... Rg3 $1 $11 {and Black has nothing to worry.}) 54. Kc6 $18 {[%emt 0:01:10] aiming for d7.} Kg3 {[%emt 0:00:45]} 55. d7 {[%emt 0:00:50]} Rg6+ $2 {[%emt 0:01:04]} (55... Rxd7 56. Kxd7 b5) 56. Kc7 {[%emt 0:00:49]} Rg7 {[%emt 0:00:11]} 57. h4 {[%emt 0:01:43] And now Kc8 would win.} b5 {[%emt 0:00:41]} 58. Kc8 $2 {[%emt 0:00:29]} (58. h5 {h6 would kill now.} Kf2 59. Rxg2+ $3 {[%mdl 512]} Kxg2 60. h6) 58... Rg8+ {[%emt 0:00:19]} 59. d8=Q {[%emt 0:00:03]} Rxd8+ {[%emt 0:00:11]} 60. Kxd8 {[%emt 0:00:01] Threatening mate with h5. KR-K3P} Kf2 {[%emt 0:00:27] [#]} 61. Ra1 $2 {[%emt 0:01:03]} (61. Rxg2+ $3 $18 {[%mdl 512]} Kxg2 62. h5) 61... g1=Q $2 {[%emt 0:00:06]} (61... a4 $11 {and Black is okay.} 62. bxa4 b4 63. Ra2+ Kg3) 62. Rxg1 {[%emt 0:00:02]} Kxg1 {[%emt 0:00:02] KPP-KPP} 63. h5 {[%emt 0:00:25]} a4 {[%emt 0:00:06]} 64. bxa4 {[%emt 0:00:31] KPP-KP} b4 {[%emt 0:00:07]} 65. h6 {[%emt 0:00:06] White wants to mate with h7.} b3 {[%emt 0:00:02]} 66. h7 {[%emt 0:00:03]} b2 {[%emt 0:00:03]} 67. h8=Q {[%emt 0:00:04]} b1=Q {[%emt 0:00:03] ( -> ...Qb8+). KQ-KQ} 68. Qd4+ {[%emt 0:00:04]} Kg2 {[%emt 0:00:08]} 69. Qg4+ {[%emt 0:00:21]} Kh2 {[%emt 0:00:14]} 70. Qf4+ {[%emt 0:00:22]} Kg2 {[%emt 0:00:16]} 71. Qd2+ {[%emt 0:00:08]} Kf3 {[%emt 0:00:21]} 72. Qc3+ {[%emt 0:00:14]} Ke4 {[%emt 0:00:33]} 73. Qc4+ {[%emt 0:00:44]} Ke5 {[%emt 0:00:30]} 74. Qc7+ $2 {[%emt 0:00:50]} ({Better is} 74. Qc5+ $18 Ke4 75. Kc7) 74... Kd5 $1 $11 {[%emt 0:00:22]} 75. a5 {[%emt 0:00:19]} Qb5 {[%emt 0:01:13] [#]} (75... Qb2 $11) 76. Qf7+ {[%emt 0:00:41]} ({White has to play} 76. Kc8 $1 $16) 76... Kc5 {[%emt 0:00:31] The position is equal.} 77. Qf2+ {[%emt 0:00:31]} Kb4 {[%emt 0:00:48]} 78. Qd2+ {[%emt 0:01:32]} Ka4 {[%emt 0:00:26]} 79. Qa2+ {[%emt 0:00:40]} Kb4 {[%emt 0:00:07] Both players deserved the win here.  Weighted Error Value: White=0.67/Black=0.38} 1/2-1/2